bitfinex/quotes_BTCUSD_20250225
["timestamp","ask_amount","ask_price","bid_price","bid_amount"]
[1740510637260,0.471609,87408.0,87407.0,0.00614414]
[1740510637423,0.471609,87408.0,87407.0,0.05281109]
[1740510637623,0.3,87408.0,87407.0,0.05281109]
[1740510638034,0.471609,87408.0,87407.0,0.05281109]
[1740510639055,0.3303,87428.0,87420.0,0.04666695]
[1740510639419,0.172569,87428.0,87427.0,0.04666695]
[1740510639625,0.172569,87428.0,87407.0,0.05281109]
[1740510639626,0.171609,87408.0,87407.0,0.05281109]
[1740510640042,0.3,87422.0,87407.0,0.05281109]
[1740510640165,0.171609,87408.0,87407.0,0.06135194]
[1740510640377,0.228776,87422.0,87420.0,0.001]
[1740510640577,0.228777,87421.0,87420.0,0.001]
[1740510640966,0.171585,87420.0,87419.0,0.04666695]
[1740510641159,0.171609,87408.0,87407.0,0.00883834]
[1740510641356,0.171609,87408.0,87407.0,0.00783834]
[1740510642223,0.171609,87408.0,87407.0,0.00183834]
[1740510642437,0.171609,87408.0,87362.0,0.5366]
[1740510642438,0.471652,87386.0,87385.0,8e-07]
[1740510642639,0.471652,87386.0,87354.0,0.04666695]
[1740510642640,0.171713,87355.0,87354.0,0.04666695]
[1740510642898,0.3578852,87386.0,87353.0,0.0756]
[1740510642899,0.171715,87354.0,87353.0,0.0756]
[1740510643073,0.171715,87354.0,87353.0,0.12269449]
[1740510643885,0.228923,87366.0,87353.0,0.12269449]
[1740510643886,0.471705,87359.0,87358.0,0.04666695]
[1740510644833,0.471705,87359.0,87353.0,0.08102754]
[1740510644834,0.0471652,87386.0,87361.0,0.04666695]
[1740510645039,0.471699,87362.0,87361.0,0.04666695]
[1740510646028,0.4705614,87362.0,87361.0,0.04666695]
[1740510646593,0.4705614,87362.0,87361.0,0.05066695]
[1740510646797,0.4705614,87362.0,87361.0,0.004]
[1740510647699,0.171699,87362.0,87361.0,0.004]
[1740510648397,0.175699,87362.0,87361.0,0.004]
[1740510649185,0.177699,87362.0,87361.0,0.004]
[1740510650277,0.006,87362.0,87361.0,0.004]
[1740510650501,0.173699,87362.0,87361.0,0.004]
[1740510650705,0.176699,87362.0,87361.0,0.004]
[1740510651303,0.173699,87362.0,87361.0,0.004]
[1740510651817,0.171715,87354.0,87353.0,0.00042754]
[1740510652156,0.171715,87354.0,87353.0,0.04709449]
[1740510653067,0.171715,87354.0,87353.0,0.05309449]
[1740510653673,0.0016962,87362.0,87353.0,0.05309449]
[1740510653900,0.171709,87357.0,87354.0,0.01454085]
[1740510654104,0.0016962,87362.0,87361.0,0.0612078]
[1740510654318,0.1733952,87362.0,87361.0,0.12876695]
[1740510654516,0.1733952,87362.0,87361.0,0.13784392]
[1740510654924,0.0016962,87362.0,87361.0,0.12876695]
[1740510655124,0.1733952,87362.0,87361.0,0.1378312]
[1740510655923,0.1733952,87362.0,87361.0,0.12876695]
[1740510656151,0.171715,87354.0,87353.0,0.00042754]
[1740510656560,0.171715,87354.0,87353.0,0.05614993]
[1740510656783,0.171715,87354.0,87353.0,0.04709449]
[1740510657109,0.171715,87354.0,87353.0,0.00042754]
[1740510657728,0.172715,87354.0,87353.0,0.00042754]
[1740510658140,0.171715,87354.0,87353.0,0.00042754]
[1740510658667,0.173715,87354.0,87353.0,0.00042754]
[1740510659642,0.173715,87354.0,87353.0,0.00142754]
[1740510659843,0.171715,87354.0,87353.0,0.00142754]
[1740510660293,0.5575697,87354.0,87353.0,5.4e-07]
[1740510660456,0.5575697,87354.0,87336.0,0.0016948]
[1740510660457,0.471742,87340.0,87336.0,0.0016948]
[1740510660658,0.471742,87340.0,87339.0,0.00178956]
[1740510661985,0.471742,87340.0,87339.0,0.00278956]
[1740510662161,0.3293,87350.0,87339.0,0.00278956]
[1740510662162,0.228972,87347.0,87339.0,0.00278956]
[1740510662364,0.171734,87344.0,87343.0,0.0768]
[1740510663196,0.171734,87344.0,87343.0,0.0758]
[1740510663405,0.171742,87340.0,87339.0,0.00278956]
[1740510664224,0.171742,87340.0,87339.0,0.00178956]
[1740510664699,0.3,87341.0,87336.0,3.6e-07]
[1740510664891,0.3,87326.0,87284.0,0.0451]
[1740510665112,0.171801,87310.0,87303.0,0.04666695]
[1740510665301,0.471801,87310.0,87309.0,0.0018342]
[1740510665509,0.5118872,87310.0,87309.0,2e-07]
[1740510666060,0.5118872,87310.0,87304.0,8e-07]
[1740510666061,0.471811,87305.0,87304.0,8e-07]
[1740510666217,0.801111,87305.0,87304.0,0.00014478]
[1740510666774,0.6293,87305.0,87304.0,0.00014478]
[1740510666989,0.801111,87305.0,87304.0,0.00014478]
[1740510667262,0.80277608,87305.0,87304.0,0.00014478]
[1740510667898,0.91363304,87305.0,87304.0,0.00114478]
[1740510668174,0.171819,87301.0,87300.0,4.6e-05]
[1740510668400,0.28567596,87301.0,87300.0,0.00013765]
[1740510668807,0.28567596,87301.0,87300.0,6.5e-07]
[1740510668918,0.61497596,87301.0,87300.0,6.5e-07]
[1740510669125,0.171872,87274.0,87264.0,0.0771]
[1740510669334,0.471872,87274.0,87273.0,0.01455649]
[1740510670561,0.80960201,87274.0,87273.0,0.01655649]
[1740510670964,0.80960201,87274.0,87273.0,0.01455649]
[1740510671168,0.80960201,87274.0,87273.0,0.01655649]
[1740510671394,0.81165416,87274.0,87273.0,0.01655649]
[1740510671808,0.80960201,87274.0,87273.0,0.01955649]
[1740510672474,0.80960201,87274.0,87273.0,0.01455649]
[1740510672675,0.801172,87274.0,87273.0,0.01455649]
[1740510672904,0.802172,87274.0,87273.0,0.01455649]
[1740510673529,0.3293,87300.0,87278.0,0.04666695]
[1740510673740,0.00865324,87296.0,87279.0,0.0798]
[1740510673939,0.17186,87280.0,87279.0,0.0798]
[1740510674372,0.17186,87280.0,87279.0,0.12646695]
[1740510675003,0.17186,87280.0,87279.0,0.13046695]
[1740510675200,0.17186,87280.0,87279.0,0.05066695]
[1740510676012,0.17186,87280.0,87279.0,0.04666695]
[1740510676568,0.17187,87275.0,87274.0,0.04666695]
[1740510676704,0.3,87300.0,87278.0,0.04666695]
[1740510676909,0.1,87314.0,87273.0,0.01455649]
[1740510676910,0.17186,87280.0,87279.0,0.04666695]
[1740510677984,0.17186,87280.0,87279.0,0.05166695]
[1740510678109,0.17186,87280.0,87279.0,0.04666695]
[1740510678545,0.17186,87280.0,87279.0,0.04966695]
[1740510679072,0.17186,87280.0,87279.0,0.003]
[1740510679437,0.17186,87280.0,87279.0,0.04966695]
[1740510679636,0.17186,87280.0,87279.0,0.05066695]
[1740510681307,0.17186,87280.0,87279.0,0.004]
[1740510681757,0.471872,87274.0,87273.0,4.9e-07]
[1740510681959,0.471872,87274.0,87235.0,0.0466]
[1740510681960,0.229193,87263.0,87257.0,0.04666695]
[1740510682164,0.171902,87259.0,87258.0,0.04666695]
[1740510682569,0.00844607,87274.0,87258.0,0.04666695]
[1740510682766,0.171896,87262.0,87261.0,0.04666695]
[1740510682920,0.15669445,87264.0,87261.0,0.04666695]
[1740510683125,0.3,87276.0,87262.0,0.00791891]
[1740510683321,0.3,87276.0,87257.0,0.00014346]
[1740510683322,0.06777022,87280.0,87269.0,0.04666695]
[1740510683520,0.171878,87271.0,87270.0,0.05458586]
[1740510683803,0.02910873,87275.0,87272.0,0.04666695]
[1740510684009,0.02910873,87275.0,87274.0,0.04666695]
[1740510684145,0.02910873,87275.0,87261.0,0.32085503]
[1740510684146,0.401022,87277.0,87276.0,0.04666695]
[1740510685160,0.401022,87277.0,87276.0,0.04566695]
[1740510685361,0.401022,87277.0,87276.0,0.04766695]
[1740510685557,0.401022,87277.0,87276.0,0.002]
[1740510685760,0.80025011,87277.0,87276.0,0.002]
[1740510685955,0.73045609,87277.0,87276.0,0.002]
[1740510686521,0.171878,87271.0,87270.0,0.04566695]
[1740510686638,0.229164,87274.0,87270.0,0.04566695]
[1740510686639,0.26259009,87277.0,87270.0,0.04566695]
[1740510686844,0.03343409,87277.0,87274.0,0.04566695]
[1740510687039,0.171868,87276.0,87275.0,0.08722456]
[1740510687347,0.175868,87277.0,87276.0,0.04566695]
[1740510687771,0.177868,87277.0,87276.0,0.04566695]
[1740510687972,0.177868,87277.0,87276.0,0.05359151]
[1740510688229,0.177868,87277.0,87275.0,0.0793]
[1740510688230,0.06777022,87280.0,87279.0,0.04566695]
[1740510688433,0.06777022,87280.0,87279.0,0.2320698]
[1740510688631,0.06777022,87280.0,87279.0,0.43674751]
[1740510689624,0.06877022,87280.0,87279.0,0.44374751]
[1740510689829,0.0016976,87300.0,87299.0,0.04566695]
[1740510690135,0.0016976,87300.0,87299.0,0.05356154]
[1740510691018,0.1739464,87300.0,87299.0,0.00789459]
[1740510691224,0.229097,87299.0,87279.0,0.007]
[1740510691374,0.0021254,87300.0,87285.0,0.01454085]
[1740510691580,0.171848,87286.0,87285.0,0.0077489]
[1740510692012,0.229127,87288.0,87268.0,0.0787]
[1740510692209,0.17185,87285.0,87284.0,0.04566695]
[1740510692570,0.171858,87281.0,87280.0,0.04566695]
[1740510693347,0.3,87296.0,87280.0,0.04566695]
[1740510693558,0.3,87299.0,87288.0,0.04566695]
[1740510693751,0.01080725,87300.0,87288.0,0.04566695]
[1740510693752,0.171842,87289.0,87288.0,0.04566695]
[1740510694948,0.16734681,87289.0,87288.0,0.04566695]
[1740510695150,0.16734681,87289.0,87269.0,0.09165903]
[1740510695151,0.171866,87277.0,87269.0,0.09165903]
[1740510695354,0.171866,87277.0,87268.0,0.0787]
[1740510695762,0.171866,87277.0,87258.0,0.0832]
[1740510695936,0.171866,87277.0,87276.0,0.04655575]
[1740510696093,0.171866,87277.0,87276.0,0.0008888]
[1740510696305,0.401008,87280.0,87279.0,0.04566695]
[1740510696616,0.171866,87277.0,87276.0,0.0008888]
[1740510697279,0.172866,87277.0,87276.0,0.0068888]
[1740510699315,0.173866,87277.0,87276.0,0.05255575]
[1740510701392,0.002,87277.0,87276.0,0.05255575]
[1740510701598,0.173866,87277.0,87276.0,0.05255575]
[1740510702157,0.173866,87277.0,87276.0,0.0078888]
[1740510702512,0.173866,87277.0,87276.0,0.0048888]
[1740510702513,0.473866,87277.0,87276.0,0.0048888]
[1740510703077,0.472866,87277.0,87276.0,0.0038888]
[1740510703282,0.58672296,87277.0,87276.0,8e-07]
[1740510703501,0.58672296,87277.0,87251.0,0.000849]
[1740510703502,0.3,87255.0,87251.0,0.000849]
[1740510703704,0.171915,87252.0,87251.0,0.000849]
[1740510703908,0.20166948,87252.0,87251.0,0.000849]
[1740510704090,0.20086948,87252.0,87251.0,0.000849]
[1740510704697,0.20086948,87252.0,87251.0,0.00099246]
[1740510705308,0.20086948,87252.0,87251.0,0.00199246]
[1740510706107,0.20186948,87252.0,87251.0,0.00199246]
[1740510709186,0.20086948,87252.0,87251.0,0.00099246]
[1740510709377,0.20186948,87252.0,87251.0,0.00099246]
[1740510709556,0.20286948,87252.0,87251.0,0.00099246]
[1740510710321,0.20286948,87252.0,87251.0,0.04565941]
[1740510710769,0.20186948,87252.0,87251.0,0.04565941]
[1740510711067,0.02975448,87252.0,87251.0,0.04565941]
[1740510711346,0.001,87252.0,87251.0,0.04565941]
[1740510711476,0.001,87252.0,87251.0,0.05443658]
[1740510711685,0.172915,87252.0,87251.0,0.05443658]
[1740510711886,0.171915,87252.0,87251.0,0.00299246]
[1740510712709,0.471915,87252.0,87251.0,0.00299246]
[1740510712906,0.52974589,87252.0,87251.0,0.00299246]
[1740510713137,0.68713089,87252.0,87250.0,4.6e-07]
[1740510713338,0.801217,87251.0,87250.0,8.7e-07]
[1740510713903,0.80965924,87251.0,87250.0,8.7e-07]
[1740510714534,0.91665924,87251.0,87250.0,8.7e-07]
[1740510715032,0.92065924,87251.0,87250.0,8.7e-07]
[1740510715392,0.90965924,87251.0,87250.0,8.7e-07]
[1740510715590,0.92165924,87251.0,87250.0,8.7e-07]
[1740510715808,1.0355162,87251.0,87250.0,8.7e-07]
[1740510716060,1.0355162,87251.0,87230.0,4e-05]
[1740510716061,0.471957,87231.0,87230.0,4e-05]
[1740510716279,0.801257,87231.0,87230.0,8.781e-05]
[1740510716859,0.798257,87231.0,87230.0,8.781e-05]
[1740510717083,0.797057,87231.0,87230.0,8.781e-05]
[1740510719452,0.6293,87231.0,87230.0,8.781e-05]
[1740510719667,0.00844224,87251.0,87234.0,0.04466695]
[1740510719872,0.171939,87240.0,87239.0,0.04466695]
[1740510720075,0.171939,87240.0,87239.0,0.05164276]
[1740510720278,0.401184,87242.0,87241.0,0.04466695]
[1740510721528,0.171941,87239.0,87238.0,0.04466695]
[1740510721868,0.001,87242.0,87241.0,0.04466695]
[1740510722008,0.172935,87242.0,87241.0,0.04266695]
[1740510722204,0.172935,87242.0,87241.0,0.04964276]
[1740510722406,0.175935,87242.0,87241.0,0.04266695]
[1740510722813,0.172935,87242.0,87241.0,0.04266695]
[1740510723013,0.3,87250.0,87246.0,0.04266695]
[1740510723359,0.0087359,87257.0,87230.0,0.04275476]
[1740510723360,0.22927,87234.0,87230.0,0.04275476]
[1740510723558,0.22927,87234.0,87230.0,8.781e-05]
[1740510723789,0.171957,87231.0,87230.0,8.781e-05]
[1740510724370,0.47199,87214.0,87205.0,0.04266695]
[1740510724800,0.47199,87214.0,87213.0,0.00012777]
[1740510725742,0.49772961,87214.0,87213.0,0.00012777]
[1740510726374,0.82702961,87214.0,87213.0,0.00012777]
[1740510727408,0.82902961,87214.0,87213.0,0.00012777]
[1740510727606,0.94288657,87214.0,87213.0,0.00012777]
[1740510727815,0.83402961,87214.0,87213.0,0.00012777]
[1740510727980,0.83502961,87214.0,87213.0,0.00012777]
[1740510728181,0.82802961,87214.0,87213.0,0.00012777]
[1740510728586,0.83202961,87214.0,87213.0,0.00012777]
[1740510729074,0.82802961,87214.0,87213.0,0.00012777]
[1740510729266,0.83202961,87214.0,87213.0,0.00012777]
[1740510729859,0.94588657,87214.0,87213.0,0.00012777]
[1740510730060,0.83102961,87214.0,87213.0,0.00012777]
[1740510730563,0.83402961,87214.0,87213.0,0.00012777]
[1740510730767,0.83002961,87214.0,87213.0,0.00012777]
[1740510730983,0.83302961,87214.0,87213.0,0.00012777]
[1740510731203,0.82702961,87214.0,87213.0,0.00012777]
[1740510731600,0.83102961,87214.0,87213.0,0.00012777]
[1740510731761,0.83602961,87214.0,87213.0,0.00012777]
[1740510731962,0.50672961,87214.0,87213.0,0.00012777]
[1740510732157,0.20672961,87214.0,87213.0,0.00012777]
[1740510732410,0.20672961,87214.0,87213.0,0.04279472]
[1740510732411,0.02973961,87214.0,87213.0,0.04279472]
[1740510732794,0.02973961,87214.0,87213.0,0.04992564]
[1740510733148,0.02573961,87214.0,87213.0,0.04992564]
[1740510733334,0.02573961,87214.0,87213.0,0.06446649]
[1740510733548,0.01,87231.0,87230.0,0.2291668]
[1740510733753,0.01,87231.0,87230.0,0.14221835]
[1740510734097,0.01,87231.0,87230.0,0.1276775]
[1740510734298,0.181957,87231.0,87230.0,0.1276775]
[1740510734501,0.181957,87231.0,87221.0,0.09165903]
[1740510734502,0.01,87231.0,87221.0,0.0762]
[1740510734708,0.171974,87222.0,87221.0,0.0752]
[1740510735107,0.171974,87222.0,87221.0,0.11786695]
[1740510735349,0.171974,87222.0,87214.0,0.3251]
[1740510735350,0.171988,87215.0,87214.0,0.36776695]
[1740510735548,0.171988,87215.0,87214.0,0.3251]
[1740510735752,0.17199,87214.0,87213.0,0.00012777]
[1740510736133,0.17199,87214.0,87213.0,0.04279472]
[1740510736857,0.01,87231.0,87213.0,0.04279472]
[1740510736993,0.171974,87222.0,87221.0,0.04266695]
[1740510737192,0.171974,87222.0,87221.0,0.04166695]
[1740510737703,0.17199,87214.0,87213.0,0.00012777]
[1740510738204,0.17199,87214.0,87213.0,0.04179472]
[1740510738533,0.229297,87224.0,87221.0,0.001]
[1740510738735,0.1788,87259.0,87221.0,0.001]
[1740510738736,0.229257,87239.0,87225.0,0.04166695]
[1740510738941,0.00876641,87240.0,87213.0,0.00012777]
[1740510738942,0.181958,87231.0,87227.0,0.04166695]
[1740510739067,0.171963,87228.0,87227.0,0.04166695]
[1740510739273,0.171969,87225.0,87224.0,0.04066695]
[1740510739487,0.171974,87222.0,87221.0,0.04151475]
[1740510739684,0.171974,87222.0,87221.0,0.0008478]
[1740510739887,0.0001522,87214.0,87213.0,0.00112777]
[1740510740058,0.0001522,87214.0,87213.0,0.04179472]
[1740510740059,0.1721422,87214.0,87213.0,0.04179472]
[1740510740259,0.17199,87214.0,87213.0,0.04179472]
[1740510740700,0.17199,87214.0,87213.0,0.00112777]
[1740510741122,0.17199,87214.0,87213.0,0.04079472]
[1740510741590,0.17199,87214.0,87213.0,0.00012777]
[1740510741768,0.17199,87214.0,87213.0,0.04179472]
[1740510742288,0.17399,87214.0,87213.0,0.04179472]
[1740510742710,0.17399,87214.0,87213.0,0.00112777]
[1740510742833,0.229314,87217.0,87214.0,0.04066695]
[1740510743029,0.3,87216.0,87213.0,0.00012777]
[1740510743235,0.47299,87214.0,87213.0,0.00012777]
[1740510743427,0.48299,87214.0,87213.0,0.00012777]
[1740510743689,0.48299,87214.0,87213.0,0.00112777]
[1740510744053,0.48199,87214.0,87213.0,0.00012777]
[1740510744652,0.01,87214.0,87213.0,0.00012777]
[1740510744860,0.011,87214.0,87213.0,0.04079472]
[1740510745091,0.011,87214.0,87213.0,0.11809472]
[1740510745316,0.011,87214.0,87213.0,0.12598998]
[1740510745928,0.011,87214.0,87213.0,0.31152283]
[1740510746133,0.01,87214.0,87213.0,0.31252283]
[1740510746353,0.01,87214.0,87213.0,0.14153083]
[1740510746564,0.01,87214.0,87213.0,0.14053083]
[1740510746992,0.01,87231.0,87230.0,0.04066695]
[1740510747445,0.01,87231.0,87230.0,0.04751567]
[1740510747665,0.01,87231.0,87230.0,0.06105652]
[1740510747891,0.01,87231.0,87230.0,0.30951552]
[1740510748345,0.01,87231.0,87230.0,0.13755652]
[1740510748574,0.01,87231.0,87230.0,0.12301567]
[1740510748842,0.01,87231.0,87230.0,0.08634872]
[1740510749036,0.01,87231.0,87230.0,0.12501567]
[1740510749476,0.01,87231.0,87230.0,0.12301567]
[1740510749708,0.01,87231.0,87230.0,0.12601567]
[1740510749966,0.181957,87231.0,87230.0,0.12601567]
[1740510750182,0.01,87231.0,87217.0,0.0768]
[1740510750402,0.171974,87223.0,87218.0,0.01454085]
[1740510750627,0.171974,87223.0,87221.0,0.000848]
[1740510750863,0.171974,87222.0,87221.0,0.000848]
[1740510751320,0.183653,87231.0,87230.0,0.03866695]
[1740510751504,0.183653,87231.0,87221.0,0.00758017]
[1740510751505,0.011696,87231.0,87221.0,0.000848]
[1740510751648,0.171974,87222.0,87221.0,0.03951495]
[1740510752244,0.172974,87222.0,87221.0,0.004848]
[1740510752458,0.172974,87222.0,87221.0,0.04351495]
[1740510752669,0.001,87222.0,87221.0,0.04351495]
[1740510753079,0.001,87222.0,87221.0,0.0650558]
[1740510753080,0.002,87222.0,87221.0,0.0650558]
[1740510753600,0.002,87222.0,87221.0,0.2370318]
[1740510754376,0.002,87222.0,87221.0,0.3587318]
[1740510754579,0.002,87222.0,87221.0,1.09757933]
[1740510754801,0.011696,87231.0,87230.0,0.3079668]
[1740510755408,0.011696,87231.0,87230.0,0.1350078]
[1740510756284,0.012696,87231.0,87230.0,0.1380078]
[1740510756722,0.012696,87231.0,87230.0,0.1440078]
[1740510757409,0.011696,87231.0,87230.0,0.09734085]
[1740510757816,0.00772259,87231.0,87230.0,0.11004139]
[1740510758024,0.171935,87243.0,87238.0,0.03766695]
[1740510758253,0.3,87261.0,87238.0,0.03766695]
[1740510758254,0.3,87276.0,87238.0,0.03766695]
[1740510758452,0.171932,87244.0,87238.0,0.03766695]
[1740510758675,0.171945,87237.0,87230.0,0.0948]
[1740510758874,0.3454,87267.0,87230.0,0.006]
[1740510759052,0.171955,87232.0,87231.0,0.00670124]
[1740510759257,0.229246,87243.0,87230.0,0.006]
[1740510759529,0.229246,87243.0,87242.0,0.03766695]
[1740510759818,0.229246,87243.0,87222.0,0.01454085]
[1740510759819,0.171953,87233.0,87232.0,0.03766695]
[1740510760369,0.171953,87233.0,87232.0,0.04436819]
[1740510760571,0.171953,87233.0,87230.0,0.007]
[1740510760572,0.171923,87248.0,87247.0,0.03766695]
[1740510760776,0.3,87251.0,87247.0,0.03766695]
[1740510760994,0.171923,87248.0,87247.0,0.03766695]
[1740510762324,0.19690995,87248.0,87247.0,0.03766695]
[1740510762930,0.18930995,87248.0,87247.0,0.03766695]
[1740510763985,0.19130995,87248.0,87247.0,0.03766695]
[1740510764177,0.19330995,87248.0,87247.0,0.03766695]
[1740510764514,0.18930995,87248.0,87247.0,0.03766695]
[1740510764723,0.171957,87231.0,87230.0,0.03771472]
[1740510764932,0.171957,87231.0,87230.0,0.04440951]
[1740510765174,0.229236,87246.0,87245.0,0.03766695]
[1740510766631,0.171949,87235.0,87234.0,0.03766695]
[1740510767532,0.229265,87236.0,87230.0,4.777e-05]
[1740510767533,0.171957,87231.0,87230.0,4.777e-05]
[1740510767771,0.471974,87222.0,87221.0,0.000848]
[1740510767985,0.471974,87222.0,87221.0,0.00099204]
[1740510769686,0.3,87222.0,87221.0,0.00099204]
[1740510769901,0.474974,87222.0,87221.0,0.00099204]
[1740510770259,0.484974,87222.0,87221.0,0.00099204]
[1740510770643,0.01,87222.0,87221.0,0.00099204]
[1740510770848,0.013,87222.0,87221.0,0.00099204]
[1740510771069,0.013,87222.0,87221.0,0.00770101]
[1740510771251,0.187974,87222.0,87221.0,0.00770101]
[1740510771452,0.016,87222.0,87221.0,0.00099204]
[1740510771670,0.013,87222.0,87221.0,0.03865899]
[1740510771886,0.013,87222.0,87221.0,0.05319984]
[1740510772206,0.013,87222.0,87221.0,0.13770881]
[1740510772414,0.023,87222.0,87221.0,0.13770881]
[1740510772620,0.023,87222.0,87221.0,0.18580881]
[1740510772839,0.02,87222.0,87221.0,0.18580881]
[1740510773058,0.191974,87222.0,87221.0,0.01370101]
[1740510773473,0.191974,87222.0,87221.0,0.00099204]
[1740510773670,0.191974,87222.0,87221.0,0.00699204]
[1740510773872,0.191974,87222.0,87221.0,0.00099204]
[1740510774251,0.191974,87222.0,87221.0,0.00199204]
[1740510774589,0.201974,87222.0,87221.0,0.03965899]
[1740510774751,0.202974,87222.0,87221.0,0.04665899]
[1740510775207,0.201974,87222.0,87221.0,0.03965899]
[1740510775635,0.201974,87222.0,87221.0,0.04065899]
[1740510777607,0.211974,87222.0,87221.0,0.04065899]
[1740510777984,0.211974,87222.0,87221.0,0.00299204]
[1740510778457,0.211974,87222.0,87221.0,0.04065899]
[1740510780487,0.229291,87226.0,87222.0,0.03766695]
[1740510780728,0.171972,87223.0,87222.0,0.03766695]
[1740510781125,0.171974,87222.0,87221.0,0.04065899]
[1740510781271,0.171974,87222.0,87221.0,0.03965899]
[1740510781486,0.171969,87225.0,87222.0,0.03766695]
[1740510781681,0.229292,87225.0,87222.0,0.03766695]
[1740510781879,0.001,87226.0,87225.0,0.1274078]
[1740510782307,0.001,87226.0,87225.0,0.13422567]
[1740510782712,0.002,87226.0,87225.0,0.13422567]
[1740510783144,0.172967,87226.0,87225.0,0.00681787]
[1740510783374,0.472967,87226.0,87225.0,0.00881787]
[1740510783577,0.472967,87226.0,87225.0,0.002]
[1740510783779,0.471967,87226.0,87225.0,0.002]
[1740510784138,0.48068118,87226.0,87225.0,0.002]
[1740510784536,0.171974,87222.0,87221.0,0.03865899]
[1740510784741,0.171974,87222.0,87221.0,0.00099204]
[1740510784944,0.001,87226.0,87221.0,0.00099204]
[1740510785124,0.171974,87222.0,87221.0,0.03865899]
[1740510785544,0.171974,87222.0,87221.0,0.00099204]
[1740510785744,0.173974,87222.0,87221.0,0.00099204]
[1740510785907,0.473974,87222.0,87221.0,0.00099204]
[1740510786324,0.53762313,87222.0,87221.0,0.00099204]
[1740510786583,0.473974,87222.0,87221.0,0.00199204]
[1740510787005,0.471974,87222.0,87221.0,0.00099204]
[1740510787173,0.471974,87222.0,87221.0,0.00199204]
[1740510787471,0.473974,87222.0,87221.0,0.00199204]
[1740510787697,0.473974,87222.0,87221.0,0.00099204]
[1740510788150,0.475974,87222.0,87221.0,0.00099204]
[1740510789298,0.475974,87222.0,87221.0,0.03865899]
[1740510789299,0.004,87222.0,87221.0,0.03865899]
[1740510789695,0.004,87222.0,87221.0,0.04432134]
[1740510790139,0.001696,87226.0,87225.0,0.20963595]
[1740510790363,0.001696,87226.0,87225.0,0.22578163]
[1740510790568,0.001696,87226.0,87225.0,0.05585758]
[1740510791390,0.001696,87226.0,87225.0,0.02019063]
[1740510791597,0.001696,87226.0,87225.0,0.05885758]
[1740510791776,0.001696,87226.0,87225.0,0.04431673]
[1740510792157,0.001696,87226.0,87225.0,0.05885758]
[1740510792579,0.001696,87226.0,87225.0,0.06485758]
[1740510792789,0.001696,87226.0,87225.0,0.05885758]
[1740510792992,0.001696,87226.0,87225.0,0.05585758]
[1740510793196,0.001696,87226.0,87225.0,0.06185758]
[1740510793551,0.002696,87226.0,87225.0,0.06885758]
[1740510793834,0.002696,87226.0,87225.0,0.06857144]
[1740510794025,0.002696,87226.0,87225.0,0.24054044]
[1740510794505,0.002696,87226.0,87225.0,0.06857144]
[1740510794876,0.002696,87226.0,87225.0,0.24054044]
[1740510795282,0.00157058,87226.0,87225.0,0.24054044]
[1740510795826,0.00157058,87226.0,87225.0,0.06857144]
[1740510796470,0.00157058,87226.0,87225.0,0.24054044]
[1740510796992,0.00157058,87226.0,87225.0,0.06857144]
[1740510797538,0.229165,87274.0,87231.0,0.50762395]
[1740510797778,0.33015139,87270.0,87231.0,1.19322657]
[1740510798095,0.03140669,87265.0,87231.0,1.19322657]
[1740510798432,0.171902,87259.0,87231.0,1.09322657]
[1740510798633,0.03140669,87265.0,87231.0,0.77185509]
[1740510799069,0.401176,87244.0,87231.0,0.47185509]
[1740510799270,0.03140669,87265.0,87231.0,0.68447904]
[1740510799644,0.171914,87253.0,87231.0,0.67947904]
[1740510799842,0.03140669,87265.0,87231.0,0.68547904]
[1740510800111,0.229201,87260.0,87231.0,0.67947904]
[1740510800301,0.171906,87257.0,87231.0,0.68447904]
[1740510800508,0.229205,87258.0,87231.0,0.69047904]
[1740510800707,0.17191,87255.0,87231.0,0.68447904]
[1740510800882,0.3,87264.0,87231.0,0.67947904]
[1740510801084,0.3,87264.0,87231.0,0.68547904]
[1740510801435,0.171913,87254.0,87231.0,0.69147904]
[1740510801840,0.3,87264.0,87231.0,0.69147904]
[1740510802051,0.171911,87255.0,87231.0,0.69147904]
[1740510802297,0.3,87264.0,87259.0,0.03566695]
[1740510802466,0.171898,87261.0,87260.0,0.03566695]
[1740510803236,0.17049089,87261.0,87260.0,0.03566695]
[1740510803439,0.1719,87260.0,87259.0,0.03566695]
[1740510804707,0.1719,87260.0,87259.0,0.03581099]
[1740510805317,0.1719,87260.0,87259.0,0.03681099]
[1740510806053,0.229189,87264.0,87260.0,0.03566695]
[1740510806225,0.171898,87261.0,87260.0,0.03566695]
[1740510807635,0.171898,87261.0,87260.0,0.03866695]
[1740510807973,0.171898,87261.0,87260.0,0.03566695]
[1740510808182,0.171898,87261.0,87260.0,0.03766695]
[1740510809210,0.171898,87261.0,87260.0,0.03866695]
[1740510809811,0.26066936,87265.0,87260.0,0.03666695]
[1740510809988,0.03148136,87265.0,87260.0,0.03566695]
[1740510810161,0.3,87265.0,87260.0,0.03566695]
[1740510810369,0.299,87265.0,87260.0,0.03566695]
[1740510810771,0.171893,87264.0,87260.0,0.03566695]
[1740510810946,0.3,87265.0,87260.0,0.03566695]
[1740510811147,0.001,87265.0,87260.0,0.03566695]
[1740510811349,0.001,87265.0,87264.0,0.03566695]
[1740510811582,0.034461,87291.0,87271.0,0.03566695]
[1740510811922,0.1719,87260.0,87259.0,0.00014404]
[1740510812631,0.3,87262.0,87259.0,0.00014404]
[1740510812865,0.4719,87260.0,87259.0,0.00014404]
[1740510813114,0.229197,87261.0,87226.0,0.082548]
[1740510813115,0.471917,87251.0,87250.0,0.04963167]
[1740510813329,0.471965,87227.0,87226.0,0.000848]
[1740510813545,0.471965,87227.0,87226.0,0.00094377]
[1740510813984,0.3,87227.0,87226.0,0.00094377]
[1740510814839,0.01076,87242.0,87226.0,0.00094377]
[1740510815793,0.01076,87246.0,87229.0,0.03566695]
[1740510815980,0.229239,87245.0,87229.0,0.03566695]
[1740510816322,0.171932,87244.0,87228.0,0.03566695]
[1740510816535,0.01076,87246.0,87233.0,0.03566695]
[1740510816872,0.171947,87236.0,87233.0,0.03566695]
[1740510817033,0.171949,87236.0,87233.0,0.03566695]
[1740510817409,0.3,87243.0,87233.0,0.03566695]
[1740510817621,0.471959,87230.0,87229.0,0.002]
[1740510817818,0.471959,87230.0,87229.0,0.001]